bitfinex/quotes_BTCUSD_20250127
["timestamp","ask_amount","ask_price","bid_price","bid_amount"]
[1737947346786,0.33367841,101230.0,101220.0,0.26883623]
[1737947347827,0.48185541,101230.0,101220.0,0.26883623]
[1737947348247,0.33367841,101230.0,101220.0,0.26883623]
[1737947348804,0.48185541,101230.0,101220.0,0.26883623]
[1737947349444,0.48185541,101230.0,101220.0,0.12064423]
[1737947349654,0.48185541,101230.0,101220.0,0.26883623]
[1737947350055,0.33367841,101230.0,101220.0,0.26883623]
[1737947350311,0.48185541,101230.0,101220.0,0.26883623]
[1737947351170,0.14378589,101230.0,101220.0,0.26883623]
[1737947351591,0.10758589,101230.0,101220.0,0.38137133]
[1737947352405,0.10758589,101230.0,101220.0,0.26883623]
[1737947354396,0.24576289,101230.0,101220.0,0.26883623]
[1737947354619,0.09758589,101230.0,101220.0,0.26883623]
[1737947355056,0.10758589,101230.0,101220.0,0.26883623]
[1737947355207,0.09758589,101230.0,101220.0,0.26883623]
[1737947355781,0.24576289,101230.0,101220.0,0.26883623]
[1737947356033,0.09758589,101230.0,101220.0,0.27859464]
[1737947356289,0.24576289,101230.0,101220.0,0.27859464]
[1737947356820,0.09758589,101230.0,101220.0,0.26883623]
[1737947357398,0.29295012,101230.0,101220.0,0.12064423]
[1737947357589,0.39196289,101230.0,101220.0,0.09764423]
[1737947358672,0.44196289,101230.0,101220.0,0.00029694]
[1737947359643,0.46196289,101230.0,101220.0,0.00029694]
[1737947359815,0.148221,101200.0,101190.0,0.00029715]
[1737947360027,0.166761,101200.0,101190.0,0.26887944]
[1737947361146,0.166761,101200.0,101190.0,0.27487944]
[1737947361348,0.02854,101200.0,101190.0,0.27487944]
[1737947361518,0.02854,101200.0,101190.0,0.39041454]
[1737947361712,0.02854,101200.0,101190.0,0.27787944]
[1737947363891,0.01854,101200.0,101190.0,0.39041454]
[1737947365230,0.01854,101200.0,101190.0,1.12431454]
[1737947365408,0.01854,101200.0,101190.0,1.27431454]
[1737947365581,0.01854,101200.0,101190.0,1.41764479]
[1737947366971,0.01854,101200.0,101190.0,1.30510969]
[1737947368010,0.01854,101200.0,101190.0,1.41764479]
[1737947368359,0.01854,101200.0,101190.0,1.50606681]
[1737947368769,0.01854,101200.0,101190.0,1.61566681]
[1737947370600,0.01854,101200.0,101190.0,1.63560903]
[1737947371752,0.01854,101200.0,101190.0,1.54718701]
[1737947372346,0.00034589,101230.0,101220.0,0.171192]
[1737947372536,0.00034589,101230.0,101220.0,0.38206213]
[1737947372741,0.01034589,101230.0,101220.0,0.26853929]
[1737947373658,0.01134589,101230.0,101220.0,0.26853929]
[1737947374222,0.00134589,101230.0,101220.0,1.37750949]
[1737947374421,0.00134589,101230.0,101220.0,1.26497439]
[1737947374674,0.00134589,101230.0,101220.0,1.40829428]
[1737947375003,0.00134589,101230.0,101220.0,1.29575918]
[1737947375206,0.00134589,101230.0,101220.0,1.40829428]
[1737947375410,0.01988589,101230.0,101220.0,1.40829428]
[1737947375527,0.01988589,101230.0,101220.0,1.29575918]
[1737947375903,0.01988589,101230.0,101220.0,1.40829428]
[1737947376033,0.01888589,101230.0,101220.0,1.40829428]
[1737947376236,0.01888589,101230.0,101220.0,1.41329428]
[1737947377574,0.01888589,101230.0,101220.0,1.30075918]
[1737947377772,0.00337366,101240.0,101230.0,0.4337121]
[1737947378078,0.00337366,101240.0,101230.0,1.26495939]
[1737947379428,0.00437366,101240.0,101230.0,1.26495939]
[1737947380138,0.00337366,101240.0,101230.0,1.15242429]
[1737947380540,0.02191366,101240.0,101230.0,1.15842429]
[1737947380791,0.02191366,101240.0,101230.0,1.17794607]
[1737947380988,0.02191366,101240.0,101230.0,1.18094607]
[1737947381301,0.02191366,101240.0,101230.0,1.29348117]
[1737947386633,0.02191366,101240.0,101230.0,1.34418924]
[1737947387036,0.02191366,101240.0,101230.0,1.38371124]
[1737947387644,0.02191366,101240.0,101230.0,1.32418924]
[1737947387848,0.10451366,101240.0,101230.0,1.14348117]
[1737947387995,0.11451366,101240.0,101230.0,0.98842429]
[1737947388201,0.10451366,101240.0,101230.0,0.98842429]
[1737947388402,0.11451366,101240.0,101230.0,1.01142429]
[1737947388841,0.11451366,101240.0,101230.0,1.10007649]
[1737947389316,0.11451366,101240.0,101230.0,1.21261159]
[1737947390384,0.11451366,101240.0,101230.0,1.36261159]
[1737947391855,0.11451366,101240.0,101230.0,1.36290874]
[1737947392234,0.11451366,101240.0,101230.0,1.16172144]
[1737947393207,0.11451366,101240.0,101230.0,1.27425654]
[1737947396157,0.10451366,101240.0,101230.0,1.27425654]
[1737947397193,0.02191366,101240.0,101230.0,1.27425654]
[1737947397991,0.02191366,101240.0,101230.0,1.30498795]
[1737947402949,0.10501366,101240.0,101230.0,1.30498795]
[1737947404397,0.11501366,101240.0,101230.0,1.30498795]
[1737947404600,0.11501366,101240.0,101230.0,1.27425654]
[1737947405863,0.11501366,101240.0,101230.0,1.26825654]
[1737947406513,0.25317566,101240.0,101230.0,0.29294444]
[1737947406721,0.25317566,101240.0,101230.0,0.44312144]
[1737947406922,0.10501366,101240.0,101230.0,0.72865654]
[1737947407735,0.10501366,101240.0,101230.0,0.75747495]
[1737947408132,0.10501366,101240.0,101230.0,0.76047495]
[1737947408724,0.10501366,101240.0,101230.0,0.75747495]
[1737947408925,0.10501366,101240.0,101230.0,0.76347495]
[1737947409263,0.00337366,101240.0,101230.0,0.76347495]
[1737947411339,0.00337366,101240.0,101230.0,0.87601005]
[1737947411992,0.02191366,101240.0,101230.0,0.78362601]
[1737947412786,0.02191366,101240.0,101230.0,1.32522601]
[1737947415010,0.09971366,101240.0,101230.0,1.32522601]
[1737947416033,0.02191366,101240.0,101230.0,1.32522601]
[1737947416654,0.02195366,101240.0,101230.0,1.32522601]
[1737947430549,0.02195366,101240.0,101230.0,1.43776111]
[1737947430753,0.02195366,101240.0,101230.0,1.32522601]
[1737947432185,0.00018179,101250.0,101240.0,0.023]
[1737947432490,0.00018179,101250.0,101240.0,0.49357949]
[1737947432634,0.00018179,101250.0,101240.0,0.5243979]
[1737947433481,0.00018179,101250.0,101240.0,0.5263979]
[1737947433692,0.00018179,101250.0,101240.0,0.5293979]
[1737947434124,0.12658179,101250.0,101240.0,0.4168628]
[1737947434893,0.14503241,101250.0,101240.0,0.4168628]
[1737947436386,0.14503241,101250.0,101240.0,1.1507628]
[1737947439806,0.14503241,101250.0,101240.0,1.15105995]
[1737947441337,0.14503241,101250.0,101240.0,1.1610233]
[1737947441567,0.09723241,101250.0,101240.0,1.1610233]
[1737947441763,0.01863241,101250.0,101240.0,1.2735584]
[1737947442156,0.07889736,101260.0,101250.0,0.17436759]
[1737947442364,0.08899516,101260.0,101250.0,0.56321639]
[1737947442534,0.08899516,101260.0,101250.0,1.29711639]
[1737947442962,0.13679516,101260.0,101250.0,1.29711639]
[1737947443326,0.12679516,101260.0,101250.0,1.29711639]
[1737947443728,0.13679516,101260.0,101250.0,1.29711639]
[1737947443948,0.12679516,101260.0,101250.0,1.29711639]
[1737947444155,0.13679516,101260.0,101250.0,1.29711639]
[1737947444596,0.12679516,101260.0,101250.0,1.29711639]
[1737947444750,0.14533516,101260.0,101250.0,1.29711639]
[1737947444955,0.15533516,101260.0,101250.0,1.29711639]
[1737947445809,0.15533516,101260.0,101250.0,1.38591614]
[1737947447517,0.15533516,101260.0,101250.0,1.39023204]
[1737947448938,0.14533516,101260.0,101250.0,1.27769694]
[1737947449266,0.14533516,101260.0,101250.0,1.39023204]
[1737947449843,0.15533516,101260.0,101250.0,1.39023204]
[1737947450659,0.15537516,101260.0,101250.0,1.39023204]
[1737947450862,0.14537516,101260.0,101250.0,1.39023204]
[1737947451447,0.15537516,101260.0,101250.0,1.39052919]
[1737947452256,0.14537516,101260.0,101250.0,1.39052919]
[1737947452685,0.15537516,101260.0,101250.0,1.39052919]
[1737947454433,0.14537516,101260.0,101250.0,1.50306429]
[1737947455717,0.15537516,101260.0,101250.0,1.39052919]
[1737947457216,0.15537516,101260.0,101250.0,1.30172944]
[1737947457624,0.15537516,101260.0,101250.0,1.41426454]
[1737947459033,0.09757516,101260.0,101250.0,1.41426454]
[1737947459247,0.01897516,101260.0,101250.0,1.41426454]
[1737947460249,0.01897516,101260.0,101250.0,0.68036454]
[1737947460593,0.02897516,101260.0,101250.0,0.68036454]
[1737947461133,0.02897516,101260.0,101250.0,0.70044874]
[1737947461562,0.02897516,101260.0,101250.0,0.70244874]
[1737947462085,0.02897516,101260.0,101250.0,0.59291364]
[1737947462282,0.15937516,101260.0,101250.0,0.58991364]
[1737947462510,0.15937516,101260.0,101250.0,0.70044874]
[1737947462799,0.15937516,101260.0,101250.0,0.70644874]
[1737947463825,0.15937516,101260.0,101250.0,0.70944874]
[1737947465440,0.14937516,101260.0,101250.0,0.70944874]
[1737947466068,0.10037516,101260.0,101250.0,0.70944874]
[1737947467412,0.10037516,101260.0,101250.0,0.76944874]
[1737947467613,0.01897516,101260.0,101250.0,0.76944874]
[1737947475432,0.00397516,101260.0,101250.0,0.76944874]
[1737947477087,0.08537516,101260.0,101250.0,0.76944874]
[1737947477697,0.09537516,101260.0,101250.0,0.76944874]
[1737947480241,0.09537516,101260.0,101250.0,0.65691364]
[1737947480405,0.14157516,101260.0,101250.0,0.65691364]
[1737947482071,0.14157516,101260.0,101250.0,0.76944874]
[1737947482461,0.13157516,101260.0,101250.0,0.76944874]
[1737947483435,0.14157516,101260.0,101250.0,0.76944874]
[1737947484107,0.14157516,101260.0,101250.0,1.50334874]
[1737947486350,0.14171666,101260.0,101250.0,1.50334874]
[1737947486553,0.00411666,101260.0,101250.0,1.50334874]
[1737947488749,0.00411666,101260.0,101250.0,1.49903284]
[1737947489502,0.0001416,101280.0,101270.0,0.298118]
[1737947489719,0.12176118,101300.0,101290.0,0.173]
[1737947489924,0.07556118,101300.0,101290.0,0.5627769]
[1737947490127,0.07605633,101300.0,101290.0,0.5617898]
[1737947490330,0.05105633,101300.0,101290.0,0.5617898]
[1737947490944,0.05105633,101300.0,101290.0,0.56653261]
[1737947491493,0.00049515,101300.0,101290.0,1.30043261]
[1737947492412,0.01854015,101300.0,101290.0,1.42326886]
[1737947492661,2.015e-05,101310.0,101300.0,0.321075]
[1737947492848,6.962e-05,101310.0,101300.0,0.64349249]
[1737947493045,6.962e-05,101310.0,101300.0,0.64948967]
[1737947493283,6.962e-05,101310.0,101300.0,0.68030808]
[1737947493993,6.962e-05,101310.0,101300.0,0.68530808]
[1737947494219,0.08522177,101320.0,101310.0,0.17106]
[1737947494454,0.08522177,101320.0,101310.0,0.49347749]
[1737947494668,0.08522177,101320.0,101310.0,0.49947458]
[1737947495907,0.08522177,101320.0,101310.0,1.23337458]
[1737947496933,0.00012177,101320.0,101310.0,0.64947458]
[1737947497137,0.01563466,101340.0,101310.0,0.64947458]
[1737947497138,0.01563466,101340.0,101330.0,0.321031]
[1737947497352,0.01563466,101340.0,101330.0,1.26481339]
[1737947497559,0.01563466,101340.0,101330.0,1.27073114]
[1737947497906,0.01563466,101340.0,101330.0,1.38326624]
[1737947498125,6.6e-07,101340.0,101330.0,1.38326624]
[1737947498750,6.6e-07,101340.0,101330.0,1.41199625]
[1737947498963,0.0001416,101350.0,101340.0,0.321016]
[1737947499196,9.8e-07,101350.0,101340.0,0.7192635]
[1737947499345,9.8e-07,101350.0,101340.0,0.80614855]
[1737947499546,0.0001416,101360.0,101350.0,0.321001]
[1737947499752,6e-07,101360.0,101350.0,0.64930345]
[1737947500072,0.0001415,101370.0,101350.0,0.64930345]
[1737947500073,1e-07,101370.0,101360.0,0.35095035]
[1737947500226,0.0185401,101370.0,101360.0,0.64340449]
[1737947500425,0.0185401,101370.0,101360.0,0.64918133]
[1737947501675,0.0185401,101370.0,101360.0,0.65518133]
[1737947501857,0.0879,101390.0,101370.0,0.173]
[1737947502059,0.08804833,101390.0,101380.0,0.38084039]
[1737947502275,0.08804833,101390.0,101380.0,0.3865997]
[1737947503543,0.08804833,101390.0,101380.0,0.3885997]
[1737947503723,0.08635405,101390.0,101380.0,0.3885997]
[1737947503898,0.07635405,101390.0,101380.0,0.2551066]
[1737947504115,0.22429705,101390.0,101380.0,0.4030646]
[1737947504315,0.22429705,101390.0,101380.0,0.2760646]
[1737947504525,0.22429705,101390.0,101380.0,0.1311066]
[1737947504962,0.17433705,101390.0,101380.0,0.1281066]
[1737947505163,0.17433705,101390.0,101380.0,0.1291066]
[1737947505338,0.22073705,101390.0,101380.0,0.00675931]
[1737947505515,0.23927705,101390.0,101380.0,0.00675931]
[1737947506152,0.23927705,101390.0,101380.0,0.00575931]
[1737947506355,0.294372,101370.0,101360.0,0.08824659]
[1737947506724,0.194372,101370.0,101360.0,0.09300249]
[1737947506859,0.33413923,101370.0,101360.0,0.09300249]
[1737947507053,0.333152,101370.0,101360.0,0.09300249]
[1737947507307,0.223152,101370.0,101360.0,0.09300249]
[1737947507719,0.223152,101370.0,101360.0,0.09900249]
[1737947507896,0.300952,101370.0,101360.0,0.09300249]
[1737947508350,0.300952,101370.0,101360.0,0.0047559]
[1737947508754,0.230701,101350.0,101340.0,0.220355]
[1737947508982,0.446587,101350.0,101340.0,0.09734729]
[1737947509335,0.446587,101350.0,101340.0,0.12034729]
[1737947510078,0.01854,101350.0,101340.0,1.37733349]
[1737947510712,0.01854,101350.0,101340.0,1.38033349]
[1737947510899,0.1391,101370.0,101350.0,0.298001]
[1737947511042,0.1391,101370.0,101360.0,0.38086939]
[1737947511388,0.0927,101380.0,101370.0,0.170972]
[1737947511595,0.01014833,101380.0,101370.0,0.38085439]
[1737947512005,0.00991162,101380.0,101370.0,0.38085439]
[1737947512566,0.00991162,101380.0,101370.0,0.38081439]
[1737947513234,7.929e-05,101380.0,101370.0,0.38081439]
[1737947513590,7.929e-05,101380.0,101370.0,0.27127929]
[1737947513918,0.01861929,101380.0,101370.0,0.27727929]
[1737947514124,0.01861929,101380.0,101370.0,0.27127929]
[1737947514464,0.01861929,101380.0,101370.0,0.38981439]
[1737947515080,0.01861929,101380.0,101370.0,0.39962441]
[1737947517667,0.01861929,101380.0,101370.0,0.51215951]
[1737947517803,0.01865929,101380.0,101370.0,0.51215951]
[1737947518749,0.02849162,101380.0,101370.0,0.51215951]
[1737947519189,0.01865929,101380.0,101370.0,0.51215951]
[1737947519322,0.02849162,101380.0,101370.0,0.51215951]
[1737947519923,0.01865929,101380.0,101370.0,0.66215951]
[1737947520375,0.01865929,101380.0,101370.0,1.20375951]
[1737947521196,0.01865929,101380.0,101370.0,1.20405624]
[1737947522405,0.01865929,101380.0,101370.0,1.23459831]
[1737947522603,0.01865929,101380.0,101370.0,1.29459831]
[1737947522808,0.00011929,101380.0,101370.0,1.29459831]
[1737947523123,0.00011929,101380.0,101370.0,1.29159831]
[1737947523330,0.00011929,101380.0,101370.0,1.29659831]
[1737947523761,0.00011929,101380.0,101370.0,1.48889831]
[1737947523956,0.00011929,101380.0,101370.0,1.48289831]
[1737947524166,0.00011929,101380.0,101370.0,1.49189831]
[1737947524321,0.00212338,101400.0,101390.0,0.4334781]
[1737947524532,0.00212338,101400.0,101390.0,0.53082539]
[1737947526088,0.00212338,101400.0,101390.0,0.53982539]
[1737947526259,0.02066338,101400.0,101390.0,0.53982539]
[1737947526605,0.02066338,101400.0,101390.0,0.54382539]
[1737947527032,0.02066338,101400.0,101390.0,0.53982539]
[1737947527225,0.02066338,101400.0,101390.0,0.53082539]
[1737947527426,0.02066338,101400.0,101390.0,0.53382539]
[1737947527641,0.01854,101400.0,101390.0,0.53982539]
[1737947528950,0.01354,101400.0,101390.0,0.53982539]
[1737947529170,0.01354,101400.0,101390.0,0.54961198]
[1737947532694,0.01580468,101400.0,101390.0,0.69281984]
[1737947533107,0.0136813,101400.0,101390.0,0.69281984]
[1737947533442,0.0137213,101400.0,101390.0,0.69281984]
[1737947533644,0.0137213,101400.0,101390.0,0.68981984]
[1737947534052,0.0137213,101400.0,101390.0,0.68781984]
[1737947534451,0.0137213,101400.0,101390.0,0.69681984]
[1737947534677,0.0137213,101400.0,101390.0,0.86726643]
[1737947535272,0.00212338,101410.0,101390.0,0.86726643]
[1737947535489,0.00212338,101410.0,101400.0,0.49433151]
[1737947535690,0.00212338,101410.0,101400.0,1.40791825]
[1737947536459,0.00212338,101410.0,101400.0,1.40928584]
[1737947537421,0.00212338,101410.0,101400.0,1.41528584]
[1737947537918,0.00212338,101410.0,101400.0,1.42428584]
[1737947538930,0.0001415,101420.0,101410.0,0.170914]
[1737947538931,0.00226488,101420.0,101410.0,0.170914]
[1737947539252,0.0027592,101420.0,101410.0,0.41245506]
[1737947539454,0.0027592,101420.0,101410.0,0.41146915]
[1737947540038,0.0027592,101420.0,101410.0,0.41646915]
[1737947540449,0.0027592,101420.0,101410.0,0.42546915]
[1737947541340,0.08332305,101420.0,101410.0,0.25926129]
[1737947541548,0.23023482,101420.0,101410.0,0.11134729]
[1737947541745,0.27533482,101420.0,101410.0,0.014]
[1737947543307,0.27533482,101420.0,101410.0,0.1265351]
[1737947544138,0.12743582,101420.0,101410.0,0.39479639]
[1737947544727,0.0027592,101420.0,101410.0,0.39479639]
[1737947544956,0.0027592,101420.0,101410.0,0.54479639]
[1737947545157,0.00063582,101420.0,101410.0,1.30935919]
[1737947547322,0.00063582,101420.0,101410.0,1.42189429]
[1737947547727,0.00063582,101420.0,101410.0,1.30935919]
[1737947549429,0.00063582,101420.0,101410.0,1.30435919]
[1737947549758,0.00063582,101420.0,101410.0,1.43266341]
[1737947550505,0.00063582,101420.0,101410.0,1.42366341]
[1737947551440,0.00063582,101420.0,101410.0,1.43266341]
[1737947551645,0.00063582,101420.0,101410.0,1.42666341]
[1737947552236,0.00063582,101420.0,101410.0,1.43266341]
[1737947553456,0.00063582,101420.0,101410.0,1.32012831]
[1737947553679,0.00063582,101420.0,101410.0,1.43266341]
[1737947553878,0.0153973,101440.0,101430.0,0.147885]
[1737947554080,0.01554556,101440.0,101430.0,1.22720249]
[1737947555121,0.01554556,101440.0,101430.0,1.24020249]
[1737947555620,0.01766894,101440.0,101430.0,1.12766739]
[1737947555826,0.01554556,101440.0,101430.0,1.12766739]
[1737947557214,0.01568706,101440.0,101430.0,1.21572561]
[1737947558203,0.01568706,101440.0,101430.0,0.67412561]
[1737947558767,0.01559777,101440.0,101430.0,0.67412561]
[1737947559580,0.06159777,101440.0,101430.0,0.67412561]
[1737947560011,0.06159777,101440.0,101430.0,0.58606739]
[1737947560335,0.15953777,101440.0,101430.0,0.25823229]
[1737947560541,0.30740777,101440.0,101430.0,0.25823229]
[1737947560745,0.15953777,101440.0,101430.0,0.27223229]
[1737947560950,0.15953777,101440.0,101430.0,0.24923229]
[1737947561195,0.15953777,101440.0,101430.0,0.27423229]
[1737947561408,0.15953777,101440.0,101430.0,0.38976739]
[1737947561613,0.30740777,101440.0,101430.0,0.27723229]
[1737947561810,0.15953777,101440.0,101430.0,0.27723229]
[1737947562260,0.15953777,101440.0,101430.0,0.38976739]
[1737947563469,0.30740777,101440.0,101430.0,0.38976739]
[1737947563749,0.15953777,101440.0,101430.0,0.38976739]
[1737947564705,0.30740777,101440.0,101430.0,0.39958328]
[1737947564933,0.30740777,101440.0,101430.0,0.16670089]
[1737947566082,0.15953777,101440.0,101430.0,0.16670089]
[1737947567202,0.30740777,101440.0,101430.0,0.16670089]
[1737947567663,0.30740777,101440.0,101430.0,0.156885]
[1737947568076,0.15953777,101440.0,101430.0,0.156885]
[1737947568741,0.30740777,101440.0,101430.0,0.156885]
[1737947569469,0.15953777,101440.0,101430.0,0.156885]
[1737947571963,0.15953777,101440.0,101430.0,0.38976739]
[1737947573986,0.05953777,101440.0,101430.0,0.38976739]
[1737947575861,0.0001415,101450.0,101440.0,0.14787]
[1737947577141,0.0961815,101450.0,101440.0,0.14787]
[1737947578009,0.0961815,101450.0,101440.0,0.15287]
[1737947578441,0.0961815,101450.0,101440.0,0.27321729]
[1737947579757,0.2440375,101450.0,101440.0,0.15287]
[1737947580392,0.2540375,101450.0,101440.0,0.005]
[1737947581358,0.2440375,101450.0,101440.0,0.005]
[1737947581777,0.2540375,101450.0,101440.0,0.005]
[1737947581986,0.2440375,101450.0,101440.0,0.005]
[1737947582181,0.3540375,101450.0,101440.0,0.005]
[1737947583281,0.3440375,101450.0,101440.0,0.005]
[1737947583697,0.2440375,101450.0,101440.0,0.005]
[1737947584244,0.5519375,101450.0,101440.0,0.005]
[1737947584450,0.55928479,101450.0,101440.0,0.005]
[1737947585027,0.65928479,101450.0,101440.0,0.005]
[1737947585488,0.55928479,101450.0,101440.0,0.005]
[1737947585664,0.31524729,101450.0,101440.0,0.005]
[1737947585884,0.44310329,101450.0,101440.0,0.005]
[1737947586033,0.54710329,101450.0,101440.0,0.005]
[1737947586227,0.55730329,101450.0,101440.0,0.005]
[1737947586672,0.56699355,101450.0,101440.0,0.005]
[1737947587905,0.56699355,101450.0,101440.0,0.00636759]
[1737947588768,0.56699355,101450.0,101430.0,0.00029715]
[1737947588769,0.64717,101440.0,101430.0,0.00029715]
[1737947588946,0.74451729,101440.0,101430.0,0.00029715]
[1737947589681,0.72451729,101440.0,101430.0,0.00029715]
[1737947589890,0.273199,101420.0,101410.0,0.08805822]
[1737947590095,0.37054629,101420.0,101410.0,0.08820648]
[1737947590495,0.52054629,101420.0,101410.0,0.08820648]
[1737947590977,0.54054629,101420.0,101410.0,0.08820648]
[1737947591214,0.54054629,101420.0,101410.0,0.00014826]
[1737947591958,0.54054629,101420.0,101410.0,0.00514826]
[1737947592332,0.64554629,101420.0,101410.0,0.01414826]
[1737947592547,0.57028629,101420.0,101410.0,0.01414826]
[1737947593134,0.57028629,101420.0,101410.0,0.01444541]
[1737947593551,0.58576218,101420.0,101410.0,0.01444541]
[1737947593758,0.57028629,101420.0,101410.0,0.01444541]
[1737947593911,0.552739,101420.0,101410.0,0.01444541]
[1737947594117,0.01954,101420.0,101410.0,0.14835941]
[1737947594343,0.01854,101420.0,101410.0,0.3582418]
[1737947594544,0.01854,101420.0,101410.0,0.3822418]
[1737947594545,0.02454,101420.0,101410.0,0.3822418]
[1737947594753,0.02666338,101420.0,101410.0,0.3822418]
[1737947594954,0.02066338,101420.0,101410.0,0.4614418]
[1737947595159,0.02066338,101420.0,101410.0,0.4654418]
[1737947595356,0.00212338,101420.0,101410.0,0.4674418]
[1737947595568,0.147872,101440.0,101430.0,0.147885]
[1737947595770,0.147872,101440.0,101430.0,0.1125351]
[1737947596132,0.147872,101440.0,101410.0,0.5784328]
[1737947596133,0.147899,101420.0,101410.0,0.5784328]
[1737947596316,0.19818323,101430.0,101410.0,0.4305278]
[1737947596521,0.40537323,101430.0,101410.0,0.19764541]
[1737947596723,0.55327023,101430.0,101410.0,0.34555341]
[1737947596865,0.542283,101430.0,101410.0,0.66429851]
[1737947597276,0.542283,101430.0,101410.0,0.85250751]
[1737947597470,0.345087,101430.0,101420.0,0.147899]
[1737947597679,0.542277,101430.0,101410.0,0.46709651]
[1737947597993,0.552277,101430.0,101410.0,0.66930551]
[1737947598151,0.542277,101430.0,101410.0,0.66930551]
[1737947598352,0.542277,101430.0,101410.0,0.65530551]
[1737947598657,0.345087,101430.0,101420.0,0.008]
[1737947598876,0.363627,101430.0,101420.0,0.155899]
[1737947599082,0.01854,101430.0,101420.0,0.46738139]
[1737947599300,0.01854,101430.0,101420.0,0.57791649]
[1737947599509,0.01854,101430.0,101420.0,0.46538139]
[1737947599975,0.01854,101430.0,101420.0,0.45938139]
[1737947600373,0.02066338,101430.0,101420.0,0.72191649]
[1737947600677,0.1480035,101450.0,101440.0,0.14787]
[1737947600802,0.0001415,101450.0,101440.0,0.2604051]
[1737947601004,0.1479975,101450.0,101440.0,0.2604051]
[1737947601925,0.1479975,101450.0,101440.0,0.2614051]
[1737947603640,0.1665375,101450.0,101440.0,0.2614051]
[1737947603846,0.1665375,101450.0,101440.0,0.2634051]
[1737947605386,0.16752473,101450.0,101440.0,0.003]
[1737947605614,0.17752473,101450.0,101440.0,0.003]
[1737947614890,0.24332473,101450.0,101440.0,0.003]
[1737947615048,0.3923375,101450.0,101440.0,0.003]
[1737947615249,0.4023375,101450.0,101440.0,0.003]
[1737947615470,0.1665375,101450.0,101440.0,0.2634051]
[1737947615816,0.0186815,101450.0,101440.0,0.2634051]
[1737947616433,0.0186815,101450.0,101440.0,0.36075239]
[1737947616608,0.0186815,101450.0,101440.0,0.43855239]
[1737947616979,0.0186815,101450.0,101440.0,0.43755239]
[1737947617180,0.0001415,101450.0,101440.0,0.43755239]
[1737947617743,0.0001415,101450.0,101440.0,0.44555239]
[1737947618144,0.0001415,101450.0,101440.0,0.44855239]
[1737947618350,0.0001415,101450.0,101440.0,0.47155239]
[1737947620831,0.0001415,101450.0,101440.0,0.48143816]
[1737947622891,0.0104089,101450.0,101440.0,0.48143816]
[1737947626601,0.0001415,101450.0,101440.0,0.48143816]
[1737947632021,0.3440925,101470.0,101450.0,0.565107]
[1737947632224,0.3440925,101470.0,101450.0,0.77498939]
[1737947632225,0.3626325,101470.0,101450.0,0.77498939]
[1737947632427,0.3626325,101470.0,101450.0,0.97212039]
[1737947633067,0.3626325,101470.0,101450.0,0.77498339]
[1737947633223,0.3626325,101470.0,101450.0,0.97411739]
[1737947633433,0.3626325,101470.0,101450.0,0.77698339]
[1737947633849,0.3626325,101470.0,101450.0,0.78198339]
[1737947634230,0.3626325,101470.0,101450.0,0.97911539]
[1737947634583,0.3626325,101470.0,101450.0,0.78198339]
[1737947635175,0.3626325,101470.0,101450.0,0.97911639]
[1737947635370,0.3626325,101470.0,101450.0,0.78198339]
[1737947636147,0.1655215,101470.0,101460.0,0.24518829]
[1737947636553,0.1655215,101470.0,101460.0,0.09734729]
[1737947637521,0.16650873,101470.0,101460.0,0.003]
[1737947637700,0.26650873,101470.0,101460.0,0.003]
[1737947637903,0.2655215,101470.0,101460.0,0.003]
[1737947638102,0.01854,101470.0,101460.0,0.36072339]
[1737947638307,0.01854,101470.0,101460.0,0.38372339]
[1737947639162,0.02591714,101470.0,101460.0,0.38372339]
[1737947639507,0.17374314,101470.0,101460.0,0.003]
[1737947640720,0.166366,101470.0,101460.0,0.12334729]
[1737947640880,0.166366,101470.0,101460.0,0.003]
[1737947641437,0.247766,101470.0,101460.0,0.003]
[1737947641642,0.166366,101470.0,101460.0,0.003]
[1737947642893,0.1665075,101470.0,101460.0,0.003]
[1737947643561,0.0186815,101470.0,101460.0,0.36072339]
[1737947643762,0.0186815,101470.0,101460.0,0.38372339]
[1737947645749,0.0186815,101470.0,101460.0,0.45942339]
[1737947649096,0.0186815,101470.0,101460.0,0.76935849]
[1737947649304,0.0186815,101470.0,101460.0,0.8000403]
[1737947649517,0.0186815,101470.0,101460.0,0.80981437]
[1737947649934,0.0186815,101470.0,101460.0,0.80881437]
[1737947650153,0.0001415,101470.0,101460.0,0.80881437]
[1737947650358,0.0001415,101470.0,101460.0,0.80981437]
[1737947650720,0.0001415,101470.0,101460.0,0.81781437]
[1737947651522,0.00226488,101470.0,101460.0,0.81781437]
[1737947651761,0.0001415,101470.0,101460.0,0.79481437]
[1737947652084,0.0001415,101470.0,101460.0,0.81781437]
[1737947652214,0.0001415,101470.0,101460.0,0.78713256]
[1737947652663,0.0001415,101470.0,101460.0,0.67459746]
[1737947652865,0.0001415,101470.0,101460.0,0.60419746]
[1737947653066,0.14895473,101470.0,101460.0,0.23065646]
[1737947653270,0.0001415,101470.0,101460.0,0.23065646]
[1737947653477,0.0001415,101470.0,101460.0,0.37849746]
[1737947654079,0.0001415,101470.0,101460.0,0.36872339]
[1737947654860,0.0001415,101470.0,101460.0,0.36902033]
[1737947656012,0.0001415,101470.0,101460.0,0.48155543]
[1737947656211,0.0001415,101470.0,101460.0,0.36902033]
[1737947659291,0.1479675,101470.0,101460.0,0.22117933]
[1737947659433,0.0001415,101470.0,101460.0,0.36902033]
[1737947659853,0.0001415,101470.0,101460.0,0.39202033]
[1737947662719,0.48618779,101490.0,101460.0,0.39202033]
[1737947662920,0.147819,101480.0,101460.0,0.58913333]
[1737947663134,0.44491,101480.0,101460.0,0.78625033]
[1737947663328,0.642003,101480.0,101460.0,0.78625033]
[1737947663524,0.494184,101480.0,101460.0,0.39202033]
[1737947663725,0.642004,101480.0,101460.0,0.56313333]
[1737947663980,0.642007,101480.0,101460.0,0.55814133]
[1737947664183,0.147826,101470.0,101460.0,0.36902033]
[1737947664564,0.857646,101480.0,101460.0,0.36102033]
[1737947664783,0.857646,101480.0,101460.0,0.56614133]
[1737947665142,0.857646,101480.0,101460.0,0.55814133]
[1737947665347,0.660547,101480.0,101460.0,0.36602033]
[1737947665586,0.660547,101480.0,101460.0,0.56614033]
[1737947665768,0.660547,101480.0,101460.0,0.55814033]
[1737947665966,0.463454,101480.0,101470.0,0.147826]
[1737947666170,0.463454,101480.0,101460.0,0.75526133]
[1737947666434,0.463454,101480.0,101460.0,0.75525333]
[1737947666717,0.660545,101480.0,101460.0,0.55513333]
[1737947667388,0.463454,101480.0,101470.0,0.002]
[1737947667992,0.4635954,101480.0,101470.0,0.002]
[1737947669258,0.6606894,101480.0,101460.0,0.44260323]
[1737947669602,0.6606894,101480.0,101460.0,0.44560323]
[1737947670053,0.6606894,101480.0,101460.0,0.44260323]
[1737947670303,0.4635954,101480.0,101460.0,0.55513833]
[1737947670597,0.4635954,101480.0,101470.0,0.007]
[1737947670758,0.4635954,101480.0,101470.0,0.002]
[1737947670963,0.4635954,101480.0,101460.0,0.76025933]